Cogmind - Beta 9.1 *** ADVENTURER MODE // 2019.10.29 @ 11:29:47 Player: cakedemon42 Result: Destroyed by G-34 Mercenary with Small Laser Performance ------------- Evolutions (1) 500 Regions Visited (4) 800 Robots Destroyed (34) 170 Value Destroyed (1004) 1004 Prototype IDs (4) 80 Alien Tech Used (0) 0 Bonus (200) 200 TOTAL SCORE: 2754 Bonus ------- Entered Garrisons 200 Cogmind --------- Core Integrity 0/400 Matter 224/300 Energy 125/125 System Corruption 0% Temperature Cool (8) Location -9/Garrison Parts ------- Power (1) Light Ion Engine Propulsion (3) Improved Treads Improved Treads Flight Unit Utility (3) Small Storage Unit Improved Targeting Computer Weapon (2) Light Assault Rifle Light Assault Rifle Inventory (6) Flight Unit Improved Sensor Array ECM Suite Peak State ------------ Power Improved Ion Engine Propulsion Improved Treads Improved Treads Improved Treads Utility Heat Sink Small Storage Unit Light Armor Plating Weapon Particle Cannon Light Assault Rifle Inventory Ion Engine Aluminum Leg Improved Sensor Array Improved Targeting Computer Improved Targeting Computer Beam Rifle [Rating: 15] Favorites ----------- Power Improved Ion Engine Engine Improved Ion Engine Propulsion Light Treads Treads Light Treads Leg Aluminum Leg Wheel Compact Wheel Flight Unit Flight Unit Utility Small Storage Unit Device Heat Sink Storage Small Storage Unit Processor Improved Targeting Computer Protection Light Armor Plating Weapon Light Assault Rifle Energy Gun EM Shotgun Energy Cannon Particle Cannon Ballistic Gun Light Assault Rifle Build | -11 -10 -9 -9 -9 ------- Run | Scr Mat Mat Sto Gar Slots Evolved 2 | . . 2 . . Power . | . . . . . Propulsion 1 | . . 1 . . Utility 1 | . . 1 . . Weapon . | . . . . . Parts Attached 45 | 6 3 9 14 13 Power 4 | 1 . 1 . 2 Engine 4 | 1 . 1 . 2 Core . | . . . . . Reactor . | . . . . . Propulsion 17 | 2 2 4 6 3 Treads 9 | . 1 3 4 1 Leg 1 | . . . 1 . Wheel 5 | 2 1 1 1 . Hover . | . . . . . Flight 2 | . . . . 2 Utility 13 | 1 1 1 6 4 Device 7 | . 1 1 4 1 Storage 1 | 1 . . . . Processor 2 | . . . . 2 Hackware . | . . . . . Protection 3 | . . . 2 1 Artifact . | . . . . . Weapon 11 | 2 . 3 2 4 Energy Gun 3 | . . 1 . 2 Energy Cannon 2 | . . 1 1 . Ballistic Gun 6 | 2 . 1 1 2 Ballistic Cannon . | . . . . . Launcher . | . . . . . Special Weapon . | . . . . . Impact Weapon . | . . . . . Slashing Weapon . | . . . . . Piercing Weapon . | . . . . . Special Melee Weapon . | . . . . . Unidentified Prototypes . | . . . . . Parts Lost 13 | . . 1 3 9 Power 1 | . . . . 1 Propulsion 3 | . . . 2 1 Utility 3 | . . . . 3 Weapon 6 | . . 1 1 4 Highest Loss Streak 4 | . . 1 2 4 Average Slot Usage (%) 95 | . 99 91 99 89 Engine 10 | . 14 11 11 9 Treads 21 | . . 13 23 31 Wheel 10 | . 27 19 9 . Device 17 | . 13 14 21 11 Storage 11 | . 14 11 11 11 Protection 1 | . . . . 3 Energy Gun 6 | . . 3 9 6 Energy Cannon 7 | . . . 10 6 Ballistic Gun 7 | . 28 17 2 5 Naked Turns . | . . . . . Heaviest Build 22 | 9 10 17 20 22 Greatest Support 69 | 26 26 40 69 69 Greatest Overweight (x) 1 | . . . 1 . Average Overweight (x) . | . . . . . Largest Inventory Capacity 6 | 6 6 6 6 6 Average Capacity 5 | 5 6 6 6 6 Most Carried 6 | 6 6 5 6 6 Average Carried 4 | 2 5 4 4 5 Final Capacity 6 | 6 6 6 6 6 Final Carried 6 | 6 6 4 6 3 Class Distribution -------------------- 95% | Mutant 4% | Scavenger-Mutant Dominant Class ---------------- Mutant | -10/Materials Mutant | -9/Materials Mutant | -9/Storage Mutant | -9/Garrison Resources | -11 -10 -9 -9 -9 ----------- Run | Scr Mat Mat Sto Gar Matter Collected 667 | 199 51 206 132 79 Remotely . | . . . . . Salvage Created 1348 | . 51 377 657 263 Parts 83 | . 5 13 49 16 Haulers Intercepted 1 | . . . 1 . Recyclers Shooed . | . . . . . Parts Field Recycled . | . . . . . Retrieved Matter . | . . . . . Parts Self-Destructed . | . . . . . Prevented . | . . . . . Kills | -11 -10 -9 -9 -9 ------- Run | Scr Mat Mat Sto Gar Combat Hostiles Destroyed 31 | . 3 7 13 8 Guns 17 | . 3 5 2 7 Cannons 13 | . . 1 11 1 Classes Destroyed 7 | . 1 2 4 . Worker 1 | . . . 1 . Hauler 1 | . . . 1 . Watcher 1 | . . . 1 . Swarmer 9 | . 3 . 3 3 Grunt 12 | . . 3 4 5 Brawler 1 | . . . 1 . Sentry 9 | . . 4 5 . Best Kill Streak 5 | . 3 3 5 4 Combat Bots Only 5 | . 3 3 5 4 Max Kills in Single Turn 2 | . 1 1 2 1 Gunslinging . | . . . . . Exploded . | . . . . . Melee . | . . . . . Uniques/NPCs Destroyed . | . . . . . Combat | -11 -10 -9 -9 -9 -------- Run | Scr Mat Mat Sto Gar Damage Taken 1862 | . 77 510 279 996 Core 413 | . 8 90 63 252 Absorbed by Shields 42 | . . . . 42 Core Remaining (%) 98 | 100 96 . . . Volleys Fired 113 | . 7 42 35 29 Largest 2 | . 2 2 2 2 Hottest 124 | . 40 88 113 124 Shots Fired 224 | . 14 83 70 57 Gun 176 | . 14 75 36 51 Cannon 48 | . . 8 34 6 Launcher . | . . . . . Special . | . . . . . Kinetic 103 | . 14 67 12 10 Thermal 89 | . . 8 34 47 Explosive . | . . . . . Electromagnetic 32 | . . 8 24 . Robot Hit Streak 35 | . 5 35 23 20 Robot Miss Streak 3 | . 1 3 1 1 Penetration Max . | . . . . . Secondary Targets 1 | . . . . 1 Max Gunslinging Chain 1 | . . . . 1 Shots Hit Robots 183 | . 12 70 55 46 Core Hits 70 | . 5 23 31 11 Critical Hits . | . . . . . Critical Kills . | . . . . . Critical Parts Destroyed . | . . . . . Melee Attacks . | . . . . . Impact . | . . . . . Slashing . | . . . . . Piercing . | . . . . . Sneak Attacks . | . . . . . Combat Hostiles . | . . . . . Follow-up Attacks . | . . . . . Damage Inflicted 2318 | . 101 704 971 542 Guns 1474 | . 101 542 351 480 Cannons 819 | . . 162 595 62 Explosions 25 | . . . 25 . Melee . | . . . . . Ramming . | . . . . . Kinetic 639 | . 101 426 69 43 Thermal 1281 | . . 162 620 499 Explosive . | . . . . . Electromagnetic 398 | . . 116 282 . Impact . | . . . . . Slashing . | . . . . . Piercing . | . . . . . Highest Corruption . | . . . . . Average Corruption . | . . . . . Corruption Purged . | . . . . . Overload Shots . | . . . . . Overflow Damage . | . . . . . Projectiles . | . . . . . Explosions . | . . . . . Melee . | . . . . . Knockbacks . | . . . . . Impact . | . . . . . Kinetic . | . . . . . Secondary . | . . . . . Self-Inflicted Damage . | . . . . . Shots . | . . . . . Rammed . | . . . . . Targets Rammed . | . . . . . Kicked . | . . . . . Crushed . | . . . . . Highest Temperature 278 | . . 227 75 278 Average Temperature 65 | . . 72 28 98 Received Heat Transfer 975 | . . 225 102 648 Siege Activations . | . . . . . Robots Corrupted . | . . . . . Combat Hostiles . | . . . . . Parts Fried 1 | . . 1 . . Impact Corruptions . | . . . . . Robots Melted 1 | . . 1 . . Combat Hostiles 1 | . . 1 . . Parts Melted 5 | . . . 2 3 Heat Transferred 2609 | . . 296 1123 1190 Parts Sabotaged . | . . . . . Parts Stolen . | . . . . . Parts Stripped . | . . . . . Power Chain Reactions 1 | . . . 1 . Missiles Intercepted . | . . . . . Alert | -11 -10 -9 -9 -9 ------- Run | Scr Mat Mat Sto Gar Peak Influence 334 | . 112 245 176 334 Average Influence 90 | . 48 136 42 198 Maximum Alert Level 1 | . . 1 . 1 Low Security (%) 85 | . . . . . Level 1 14 | . . . . . Level 2 . | . . . . . Level 3 . | . . . . . Level 4 . | . . . . . Level 5 . | . . . . . High Security . | . . . . . Max Security . | . . . . . Squads Dispatched 3 | . . 1 2 . Investigation . | . . . . . Extermination . | . . . . . Reinforcement 1 | . . 1 . . Assault . | . . . . . Garrison 2 | . . . 2 . Intercept . | . . . . . Construction Impeded . | . . . . . Haulers Reinforced . | . . . . . Stealth | -11 -10 -9 -9 -9 --------- Run | Scr Mat Mat Sto Gar Distress Signals 1 | . . 1 . . Communications Jammed . | . . . . . Distress Signals . | . . . . . Times Spotted 48 | . 3 13 17 15 Peak Tracking Total 8 | . 3 5 3 8 Tactical Retreats 3 | . . 1 . 2 Traps | -11 -10 -9 -9 -9 ------- Run | Scr Mat Mat Sto Gar Traps Triggered 1 | . . . . 1 Indirectly . | . . . . . Trap Hack Attempts . | . . . . . Triggered . | . . . . . Disarmed . | . . . . . Reprogrammed . | . . . . . Reused . | . . . . . Traps Extracted . | . . . . . Installed . | . . . . . Triggered . | . . . . . Machines | -11 -10 -9 -9 -9 ---------- Run | Scr Mat Mat Sto Gar Machines Disabled 2 | . . . 2 . Max in Single Turn 1 | . . . 1 . Machines Sabotaged . | . . . . . Garrisons Compromised . | . . . . . Overloaded Fab Kills . | . . . . . Fab Network Shutdowns . | . . . . . Hacking | -11 -10 -9 -9 -9 --------- Run | Scr Mat Mat Sto Gar Machines Accessed 12 | . 3 1 8 . Terminals 11 | . 3 1 7 . Fabricators . | . . . . . Repair Stations . | . . . . . Recycling Units . | . . . . . Scanalyzers . | . . . . . Garrison Access 1 | . . . 1 . Total Hacks 34 | . 11 3 20 . Successful 27 | . 8 3 16 . Failed 7 | . 3 . 4 . Catastrophic . | . . . . . Database Lockouts . | . . . . . Manual 20 | . 8 2 10 . Terminals 32 | . 11 3 18 . Fabricators . | . . . . . Repair Stations . | . . . . . Recycling Units . | . . . . . Scanalyzers . | . . . . . Garrison Access 2 | . . . 2 . Terminal Hacks 14 | . 4 2 8 . Part Schematic 1 | . 1 . . . Robot Analysis 1 | . 1 . . . Prototype ID Bank 2 | . 1 . 1 . Open Door 3 | . . . 3 . Terminal Index 2 | . 1 . 1 . Alert Level 1 | . . 1 . . Unreport Threat 2 | . . 1 1 . Locate Traps 2 | . . . 2 . Fabricator Hacks . | . . . . . Repair Station Hacks . | . . . . . Recycling Unit Hacks . | . . . . . Scanalyzer . | . . . . . Garrison Access Hacks 2 | . . . 2 . Unlock Access 1 | . . . 1 . Coupler Status 1 | . . . 1 . Unauthorized Hacks 23 | . 8 2 13 . Terminals 11 | . 4 1 6 . Track 2 | . 1 . 1 . Botnet 7 | . 2 1 4 . Operators 2 | . 1 . 1 . Fabricators . | . . . . . Repair Stations . | . . . . . Recycling Units . | . . . . . Scanalyzers . | . . . . . Garrison Access . | . . . . . Data Cores Recovered . | . . . . . Used . | . . . . . Hacking Detections 12 | . 3 1 8 . Full Trace Events . | . . . . . Feedback Events . | . . . . . Feedback Blocked . | . . . . . Robot Schematics Acquired . | . . . . . Robots Built . | . . . . . Matter . | . . . . . Time . | . . . . . Total Robot Build Rating . | . . . . . Part Schematics Acquired 1 | . 1 . . . Parts Built . | . . . . . Matter . | . . . . . Time . | . . . . . Total Part Build Rating . | . . . . . Parts Repaired . | . . . . . Time . | . . . . . Parts Recycled . | . . . . . Recycled Matter . | . . . . . Retrieved Matter . | . . . . . Retrieved Components . | . . . . . Parts Scanalyzed . | . . . . . Part Schematics Acquired . | . . . . . Parts Damaged . | . . . . . Bothacking | -11 -10 -9 -9 -9 ------------ Run | Scr Mat Mat Sto Gar Used RIF Installer . | . . . . . Robots Hacked . | . . . . . Non-combat . | . . . . . Combat . | . . . . . Robot Hacks Applied . | . . . . . Relay Couplers Released . | . . . . . Robots Rewired . | . . . . . Allies Hacked . | . . . . . Hacks Repelled . | . . . . . Allies | -11 -10 -9 -9 -9 -------- Run | Scr Mat Mat Sto Gar Total Allies . | . . . . . Largest Group . | . . . . . Highest-Rated Group . | . . . . . Highest-Rated Ally . | . . . . . Total Orders . | . . . . . Ally Attacks . | . . . . . Total Damage . | . . . . . Kills . | . . . . . Allies Corrupted . | . . . . . Allies Melted . | . . . . . Intel | -11 -10 -9 -9 -9 ------- Run | Scr Mat Mat Sto Gar Robot Analysis Total 1 | . 1 . . . Derelict Logs Recovered . | . . . . . Drone Launches . | . . . . . Drone Recoveries . | . . . . . Exploration | -11 -10 -9 -9 -9 ------------- Run | Scr Mat Mat Sto Gar Turns Passed 2260 | 62 165 408 1166 459 Spaces Moved 1034 | 48 155 237 406 188 Core 2 | 2 . . . . Treads 673 | . . 100 396 177 Legs . | . . . . . Wheels 348 | 46 155 137 10 . Hover . | . . . . . Flight 11 | . . . . 11 Fastest Speed 50 | 50 90 90 90 57 Average Speed 135 | 91 90 119 158 153 Slowest Speed 160 | 100 90 160 160 160 Overloaded Moves . | . . . . . Propulsion Burnouts . | . . . . . Robots Hopped . | . . . . . Cave-ins Triggered . | . . . . . Exploration Rate (%) 31 | 4 33 24 56 38 Regions Visited 4 Branch Regions 1 Pre-discovered Areas . | . . . . . Known Exits Taken 1 | . . . 1 . Unknown Exits Taken 3 | 1 1 1 . . Scrap Searched . | . . . . . Spaces Dug . | . . . . . Terrain Destroyed 3 | . . . 3 . Melee . | . . . . . Projectile . | . . . . . AOE 3 | . . . 3 . Actions | -11 -10 -9 -9 -9 --------- Run | Scr Mat Mat Sto Gar Total 1684 | 65 168 290 860 301 Wait 449 | . . . 392 57 Move 1030 | 47 154 236 405 188 Hop . | . . . . . Pick Up 29 | 12 2 2 8 5 Fast Attach 5 | . 1 . 3 1 Attach 21 | 6 . 3 4 8 Detach . | . . . . . Swap 19 | . 2 6 7 4 Drop 10 | . 2 1 6 1 Fire 113 | . 7 42 35 29 Melee . | . . . . . Ram . | . . . . . Kick . | . . . . . Crush . | . . . . . Escape Stasis 8 | . . . . 8 Rewire . | . . . . . Trap . | . . . . . Miscellaneous . | . . . . . Route ------- -11/Scrapyard -10/Materials -9/Materials -9/Storage (discovered 2 exits: [*Mat] / Gar) -9/Garrison History --------- Turn | Location | Event 15 | -11/Scrapyard | Discovered new exit (range 15) 63 | -11/Scrapyard | Entered Materials 200 | -10/Materials | Discovered new exit (range 16) 228 | -10/Materials | Entered another Materials area 228 | -9/Materials | Evolved 2 slots: Propulsion x1, Utility x1 318 | -9/Materials | Build established: Mutant 568 | -9/Materials | Discovered new exit (range 16) 636 | -9/Materials | Entered Storage 1543 | -9/Storage | Discovered new exit (range 16) 1574 | -9/Storage | Garrison activated, responded to threat 1686 | -9/Storage | Garrison activated, responded to threat 1797 | -9/Storage | Identified exit to Garrison 1802 | -9/Storage | Entered Garrison 1872 | -9/Garrison | Triggered checkpoint 2062 | -9/Garrison | Triggered checkpoint 2072 | -9/Garrison | Triggered checkpoint 2074 | -9/Garrison | Core integrity fell below 50% 2204 | -9/Garrison | Core integrity fell below 20% 2254 | -9/Garrison | Lost 4 parts (1n1u2w) 2261 | -9/Garrison | Destroyed by G-34 Mercenary with Small Laser Last Messages --------------- 02181_ Beam Rifle destroyed. 02183_ Sml. Laser destroyed. 02202_ Imp. Targeting Computer destroyed. 02216_ Acquired Lgt. Assault Rifle. 02221_ Acquired Flight Unit. 02223_ Imp. Treads destroyed. 02224_ Acquired Flight Unit. 02227_ Dropped Ion Engine. 02229_ Acquired Lgt. Ion Engine. 02235_ Triggered Stasis Trap. 02235_ A bubble of rippling energy engulfs the area. 02235_ Field strength at 95. 02236_ Field strength at 90. 02243_ Field strength at 85. 02244_ Field strength at 80. 02246_ Field strength at 72. 02247_ Field strength at 64. 02248_ Field strength at 56. 02249_ Field strength at 49. 02250_ Field strength at 42. Map ----- +----------------------------------------------------+ | ???????????????????????# | | ???????????????????????# | | ???????????????????????# ^^####################### | | ???????????????????????# #?????????????????????? | | ???????????????????????# #?????????????????????? | | ???????????????????????# #?????????????????????? | | ?????????????#?????????# #?????????????????????? | | ?????????????# ??####### #?????????????????????? | | ?????????????# ?# ##^ ^#?????????????????????? | | ????????????## ## ## ^^#?????????????????????? | | ????????????# #?????????????????????? | | ????????????# #?????????????????????? | | ????????????# #?????????????????????? | | ????????????# ## ## #?????????????????????? | | ????????????# ## ## ###???????????????????? | | ????????????" #???????????????????? | | ????????????" #??##???????????????? | | ????????????" #?? ???????????????? | | ????????????" #??# ???????????????? | | ????????????# ## ## ###??# ???????????????? | | ???????????## ## ## ######+###????????????? | | ??????????? #????????????? | | ?????????? g %#????????????? | | ?????????#### #######* #????????????? | | ????????????######""""##gg##?????# #????????????? | | ???????????????????????# @#??????# #????????????? | | ???????????????????????# #??????+ +????????????? | | ???????????????????????# #??????# ##???????????? | | ???????????????????????# #??????# #????????????? | | ???????????????????????# #??????# #????????????? | | ???????????????????????# #??????# #????????????? | | ???????????????????????# ######## ############## | | ???????????????????????# # | | ???????????????????????# % # | | ???????????????????????####### ################ # | | ?????????????????????????????#=#?????????????????? | | ?????????????????????????????# #?????????????????? | | ?????????????????????????????# #?????????????????? | | ?????????????????????????????# #?????????????????? | | ?????????????????????????????#[#?????????????????? | | ?????????????????????????????#=#?????????????????? | | ?????????????????????????????#%#?????????????????? | | ?????????????????????????????#*#?????????????????? | | ?????????????????????????????#= ?????????????????? | | ??????????????????????????????##?????????????????? | | ?????????????????????????????????????????????????? | | ?????????????????????????????????????????????????? | | ?????????????????????????????????????????????????? | | ?????????????????????????????????????????????????? | | ?????????????????????????????????????????????????? | +----------------------------------------------------+ Best States ------------- Heat Dissipation 38 Energy Generation 12 Energy Capacity 265 Matter Stores 300 Matter Capacity 300 Sight Range 16 Robot Scan Range 13 Terrain Scan Density 10 ECM Strength 1 Armor Coverage 150 Resistance: KI 20 Resistance: TH 20 Resistance: EX 20 Resistance: EM 20 Resistance: I 20 Resistance: S 20 Resistance: P 20 Evasion (%) 50 Targeting Accuracy 6 Recoil Reduction 3 Item Schematics ----------------- Ion Engine | -10/Materials | Hacked Robot Schematics ------------------ None Fabricated ------------ Nothing Alien Tech Used ----------------- None Achievements -------------- None Challenges ------------ None Game ------ Seed SalvageRefineryNanosword Manual? 0 Play Time 00:29:32 Cumulative 136.6 hours Start 2019.10.29 @ 10:57:44 End 2019.10.29 @ 11:29:47 Sessions 1 Manual Loads 0 Difficulty Adventurer Special Mode None Game No. 99 Rogue 97 Adventurer 1 Explorer 0 Win Type - Total 0 Types 0/0/0/0/0/0/0 Lore% 32 Gallery% 54 Achievement% 26 Wizard Run 0 Options --------- ASCII 0 Keyboard 0 Movement Mouse Keybinds 0 Fullscreen 1 Font 12/Smallcaps Map View 83x54 Tactical HUD 1 Map Filters NONE Filters NONE Steam 1 RUN: bfedbdd6-7d7a-4955-8f2d-ba53fbfaaaee